[Event "December 12 Early 2023"]
[Site "https://www.chess.com"]
[Date "2023.12.12"]
[Round "6"]
[White "Rangel, Daniel"]
[Black "YurasovMat-2012"]
[Result "0-1"]
[Board "133"]
[TimeControl "180+1"]
[WhiteFideId "2124475"]
[WhiteElo "2507"]
[BlackElo "2452"]
[WhiteTeam "BRA"]
[WhiteClock "0:00:00"]
[BlackClock "0:00:22"]

1. c4 {[%clk 0:03:00]}  c5 {[%clk 0:02:58]} 2. g3 {[%clk 0:03:01]}  g6 {[%clk 0:02:57]} 3. Bg2 {[%clk 0:03:01]}  Bg7 {[%clk 0:02:57]} 4. Nc3 {[%clk 0:03:02]}  Nc6 {[%clk 0:02:54]} 5. e4 {[%clk 0:03:01]}  Nf6 {[%clk 0:02:52]} 6. Nge2 {[%clk 0:03:02]}  d6 {[%clk 0:02:51]} 7. O-O {[%clk 0:03:02]}  O-O {[%clk 0:02:51]} 8. d3 {[%clk 0:03:02]}  a6 {[%clk 0:02:50]} 9. h3 {[%clk 0:03:01]}  Rb8 {[%clk 0:02:49]} 10. f4 {[%clk 0:02:54]}  e5 {[%clk 0:02:48]} 11. fxe5 {[%clk 0:02:49]}  Nxe5 {[%clk 0:02:49]} 12. Bg5 {[%clk 0:02:43]}  h6 {[%clk 0:02:48]} 13. Be3 {[%clk 0:02:41]}  Re8 {[%clk 0:02:45]} 14. Qd2 {[%clk 0:02:41]}  Kh7 {[%clk 0:02:43]} 15. Nf4 {[%clk 0:02:38]}  b5 {[%clk 0:02:42]} 16. b3 {[%clk 0:02:33]}  Bd7 {[%clk 0:02:36]} 17. Ncd5 {[%clk 0:02:29]}  Nxd5 {[%clk 0:02:32]} 18. Nxd5 {[%clk 0:02:30]}  f5 {[%clk 0:02:24]} 19. Rae1 {[%clk 0:02:25]}  fxe4 {[%clk 0:02:20]} 20. Bxe4 {[%clk 0:02:09]}  Bxh3 {[%clk 0:02:12]} 21. Rf2 {[%clk 0:02:02]}  bxc4 {[%clk 0:02:09]} 22. Rh2 {[%clk 0:01:42]}  Qc8 {[%clk 0:01:54]} 23. Rf1 {[%clk 0:01:15]}  cxd3 {[%clk 0:01:30]} 24. Rf4 {[%clk 0:00:47]}  Bg4 {[%clk 0:01:09]} 25. Rf6 {[%clk 0:00:28]}  h5 {[%clk 0:01:04]} 26. Bg5 {[%clk 0:00:10]}  c4 {[%clk 0:00:56]} 27. Qf4 {[%clk 0:00:07]}  c3 {[%clk 0:00:37]} 28. Ne3 {[%clk 0:00:02]}  c2 {[%clk 0:00:33]} 29. Bxg6+ {[%clk 0:00:02]}  Nxg6 {[%clk 0:00:29]} 30. Rxg6 {[%clk 0:00:03]}  Kxg6 {[%clk 0:00:25]} 31. Nxg4 {[%clk 0:00:00]}  Qxg4 {[%clk 0:00:22]} 0-1

[Event "December 12 Early 2023"]
[Site "https://www.chess.com"]
[Date "2023.12.12"]
[Round "6"]
[White "Shapiro, Daniel"]
[Black "Tay, Junior"]
[Result "0-1"]
[Board "135"]
[TimeControl "180+1"]
[WhiteFideId "2001780"]
[BlackFideId "5800439"]
[WhiteElo "2323"]
[BlackElo "2504"]
[WhiteTeam "USA"]
[BlackTeam "SGP"]
[WhiteClock "0:00:00"]
[BlackClock "0:01:48"]

1. d4 {[%clk 0:03:00]}  d5 {[%clk 0:03:00]} 2. c4 {[%clk 0:03:00]}  e6 {[%clk 0:02:59]} 3. Nf3 {[%clk 0:03:00]}  c5 {[%clk 0:02:59]} 4. cxd5 {[%clk 0:03:00]}  exd5 {[%clk 0:03:00]} 5. g3 {[%clk 0:02:59]}  Nc6 {[%clk 0:03:01]} 6. Bg2 {[%clk 0:02:59]}  Nf6 {[%clk 0:03:01]} 7. O-O {[%clk 0:02:58]}  cxd4 {[%clk 0:03:02]} 8. Nxd4 {[%clk 0:02:57]}  Bc5 {[%clk 0:03:02]} 9. Nb3 {[%clk 0:02:48]}  Bb6 {[%clk 0:03:02]} 10. Nc3 {[%clk 0:02:49]}  d4 {[%clk 0:03:02]} 11. Na4 {[%clk 0:02:49]}  O-O {[%clk 0:03:03]} 12. Bg5 {[%clk 0:02:34]}  Re8 {[%clk 0:03:02]} 13. Bxf6 {[%clk 0:02:20]}  Qxf6 {[%clk 0:03:00]} 14. Nxb6 {[%clk 0:02:14]}  axb6 {[%clk 0:02:59]} 15. a3 {[%clk 0:01:05]}  Bg4 {[%clk 0:02:57]} 16. Bxc6 {[%clk 0:00:57]}  Bxe2 {[%clk 0:02:47]} 17. Qxd4 {[%clk 0:00:53]}  Qxc6 {[%clk 0:02:44]} 18. Rfc1 {[%clk 0:00:42]}  Qb5 {[%clk 0:02:32]} 19. Qb4 {[%clk 0:00:37]}  Qh5 {[%clk 0:02:31]} 20. Nd4 {[%clk 0:00:29]}  Bd3 {[%clk 0:02:25]} 21. Rc3 {[%clk 0:00:21]}  Be4 {[%clk 0:02:19]} 22. Re1 {[%clk 0:00:20]}  Re5 {[%clk 0:02:04]} 23. Rce3 {[%clk 0:00:19]}  Qxh2+ {[%clk 0:02:02]} 24. Kf1 {[%clk 0:00:00]}  Bd3+ {[%clk 0:01:48]} 0-1

[Event "December 12 Early 2023"]
[Site "https://www.chess.com"]
[Date "2023.12.12"]
[Round "6"]
[White "Herman, Matthew"]
[Black "Antonio, Jorge Carlos"]
[Result "1-0"]
[Board "136"]
[TimeControl "180+1"]
[WhiteFideId "2028964"]
[BlackFideId "113190"]
[WhiteElo "2501"]
[BlackElo "2313"]
[WhiteTeam "USA"]
[BlackTeam "ARG"]
[WhiteClock "0:00:04"]
[BlackClock "0:00:00"]

1. e4 {[%clk 0:03:00]}  c5 {[%clk 0:02:59]} 2. Nf3 {[%clk 0:03:01]}  e6 {[%clk 0:02:59]} 3. d4 {[%clk 0:03:01]}  cxd4 {[%clk 0:02:59]} 4. Nxd4 {[%clk 0:03:02]}  a6 {[%clk 0:03:00]} 5. Bd3 {[%clk 0:03:02]}  Nc6 {[%clk 0:03:00]} 6. Nxc6 {[%clk 0:03:01]}  bxc6 {[%clk 0:02:59]} 7. Nd2 {[%clk 0:02:58]}  d5 {[%clk 0:02:58]} 8. O-O {[%clk 0:02:58]}  Nf6 {[%clk 0:02:58]} 9. Qe2 {[%clk 0:02:50]}  Be7 {[%clk 0:02:57]} 10. b3 {[%clk 0:02:49]}  O-O {[%clk 0:02:54]} 11. Bb2 {[%clk 0:02:50]}  a5 {[%clk 0:02:53]} 12. a4 {[%clk 0:02:49]}  Qb6 {[%clk 0:02:52]} 13. Rab1 {[%clk 0:01:59]}  Rd8 {[%clk 0:01:51]} 14. Kh1 {[%clk 0:01:34]}  Ba6 {[%clk 0:01:46]} 15. c4 {[%clk 0:01:17]}  Nd7 {[%clk 0:01:39]} 16. f4 {[%clk 0:00:37]}  d4 {[%clk 0:01:28]} 17. e5 {[%clk 0:00:30]}  c5 {[%clk 0:01:26]} 18. Rf3 {[%clk 0:00:26]}  Bb7 {[%clk 0:01:23]} 19. Rh3 {[%clk 0:00:15]}  g6 {[%clk 0:01:20]} 20. Rf1 {[%clk 0:00:11]}  Rf8 {[%clk 0:01:16]} 21. Ba3 {[%clk 0:00:10]}  Qc6 {[%clk 0:01:12]} 22. Ne4 {[%clk 0:00:07]}  Rae8 {[%clk 0:01:04]} 23. Kg1 {[%clk 0:00:03]}  f6 {[%clk 0:00:58]} 24. exf6 {[%clk 0:00:03]}  Nxf6 {[%clk 0:00:57]} 25. Ng5 {[%clk 0:00:03]}  Bd6 {[%clk 0:00:48]} 26. Nxh7 {[%clk 0:00:03]}  Nxh7 {[%clk 0:00:44]} 27. Rxh7 {[%clk 0:00:03]}  Qxg2+ {[%clk 0:00:40]} 28. Qxg2 {[%clk 0:00:04]}  Bxg2 {[%clk 0:00:36]} 29. Bxg6 {[%clk 0:00:04]}  Bxf1 {[%clk 0:00:29]} 30. Kxf1 {[%clk 0:00:03]}  Rxf4+ {[%clk 0:00:24]} 31. Ke2 {[%clk 0:00:03]}  e5 {[%clk 0:00:12]} 32. Bc1 {[%clk 0:00:03]}  Rg4 {[%clk 0:00:07]} 33. Bf5 {[%clk 0:00:03]}  Rg7 {[%clk 0:00:05]} 34. Rh5 {[%clk 0:00:04]}  e4 {[%clk 0:00:05]} 35. Bh6 {[%clk 0:00:04]}  Rg2+ {[%clk 0:00:03]} 36. Kf1 {[%clk 0:00:03]}  Ra2 {[%clk 0:00:00]} 37. Rg5+ {[%clk 0:00:04]} 1-0

[Event "December 12 Early 2023"]
[Site "https://www.chess.com"]
[Date "2023.12.12"]
[Round "6"]
[White "Dinu, Dumitru-Daniel"]
[Black "Fernandez Siles, Luis"]
[Result "1-0"]
[Board "137"]
[TimeControl "180+1"]
[WhiteFideId "1208403"]
[BlackFideId "2209420"]
[WhiteElo "2501"]
[BlackElo "2311"]
[WhiteTeam "ROU"]
[BlackTeam "ESP"]
[WhiteClock "0:01:09"]
[BlackClock "0:00:45"]

1. e4 {[%clk 0:03:00]}  c5 {[%clk 0:02:58]} 2. Nf3 {[%clk 0:03:00]}  Nc6 {[%clk 0:02:57]} 3. d4 {[%clk 0:02:57]}  cxd4 {[%clk 0:02:58]} 4. Nxd4 {[%clk 0:02:57]}  Nf6 {[%clk 0:02:58]} 5. Nc3 {[%clk 0:02:57]}  e5 {[%clk 0:02:58]} 6. Ndb5 {[%clk 0:02:56]}  d6 {[%clk 0:02:59]} 7. Bg5 {[%clk 0:02:55]}  a6 {[%clk 0:02:59]} 8. Na3 {[%clk 0:02:55]}  b5 {[%clk 0:03:00]} 9. Bxf6 {[%clk 0:02:51]}  gxf6 {[%clk 0:03:00]} 10. Nd5 {[%clk 0:02:50]}  f5 {[%clk 0:02:59]} 11. c3 {[%clk 0:02:49]}  Bg7 {[%clk 0:02:59]} 12. Nc2 {[%clk 0:02:49]}  fxe4 {[%clk 0:02:49]} 13. Qe2 {[%clk 0:02:46]}  f5 {[%clk 0:02:45]} 14. Qh5+ {[%clk 0:02:45]}  Kf8 {[%clk 0:02:43]} 15. Nce3 {[%clk 0:02:44]}  Be6 {[%clk 0:02:27]} 16. Rd1 {[%clk 0:02:35]}  f4 {[%clk 0:02:16]} 17. Nf5 {[%clk 0:02:32]}  Ra7 {[%clk 0:01:58]} 18. Nxg7 {[%clk 0:02:19]}  Kxg7 {[%clk 0:01:57]} 19. Be2 {[%clk 0:02:09]}  Qe8 {[%clk 0:01:55]} 20. Qh4 {[%clk 0:02:03]}  Qg6 {[%clk 0:01:52]} 21. Bh5 {[%clk 0:01:41]}  Qxg2 {[%clk 0:01:45]} 22. Kd2 {[%clk 0:01:38]}  e3+ {[%clk 0:01:28]} 23. Kc1 {[%clk 0:01:34]}  exf2 {[%clk 0:01:23]} 24. Qf6+ {[%clk 0:01:32]}  Kg8 {[%clk 0:01:09]} 25. Qxe6+ {[%clk 0:01:32]}  Kg7 {[%clk 0:01:07]} 26. Qf6+ {[%clk 0:01:28]}  Kg8 {[%clk 0:01:06]} 27. Qxd6 {[%clk 0:01:26]}  f3 {[%clk 0:00:49]} 28. Qxc6 {[%clk 0:01:11]}  Qg5+ {[%clk 0:00:49]} 29. Kb1 {[%clk 0:01:10]}  Qxh5 {[%clk 0:00:45]} 30. Nf6+ {[%clk 0:01:09]} 1-0

[Event "December 12 Early 2023"]
[Site "https://www.chess.com"]
[Date "2023.12.12"]
[Round "6"]
[White "Skibbe, Willi"]
[Black "Parfenov, Viktor N."]
[Result "0-1"]
[Board "138"]
[TimeControl "180+1"]
[WhiteFideId "4682190"]
[BlackFideId "4165969"]
[WhiteElo "2294"]
[BlackElo "2499"]
[WhiteTeam "GER"]
[BlackTeam "RUS"]
[WhiteClock "0:00:04"]
[BlackClock "0:00:12"]

1. e4 {[%clk 0:03:00]}  e6 {[%clk 0:02:57]} 2. d4 {[%clk 0:03:00]}  d5 {[%clk 0:02:57]} 3. exd5 {[%clk 0:03:00]}  exd5 {[%clk 0:02:57]} 4. Nf3 {[%clk 0:03:00]}  Nf6 {[%clk 0:02:56]} 5. Bd3 {[%clk 0:02:59]}  c5 {[%clk 0:02:56]} 6. dxc5 {[%clk 0:02:56]}  Bxc5 {[%clk 0:02:55]} 7. O-O {[%clk 0:02:56]}  O-O {[%clk 0:02:55]} 8. h3 {[%clk 0:02:56]}  Nc6 {[%clk 0:02:52]} 9. Nc3 {[%clk 0:02:56]}  h6 {[%clk 0:02:35]} 10. Bf4 {[%clk 0:02:52]}  a6 {[%clk 0:02:32]} 11. a3 {[%clk 0:02:31]}  Re8 {[%clk 0:02:30]} 12. Qd2 {[%clk 0:02:31]}  Bf8 {[%clk 0:02:16]} 13. Rfe1 {[%clk 0:02:27]}  Be6 {[%clk 0:02:12]} 14. Rad1 {[%clk 0:02:25]}  Qa5 {[%clk 0:02:09]} 15. Ne5 {[%clk 0:02:16]}  Qb6 {[%clk 0:01:56]} 16. Na4 {[%clk 0:01:53]}  Qa7 {[%clk 0:01:48]} 17. Be3 {[%clk 0:01:02]}  Qb8 {[%clk 0:01:46]} 18. Nf3 {[%clk 0:01:00]}  Qc7 {[%clk 0:01:42]} 19. Bf4 {[%clk 0:00:52]}  Qd8 {[%clk 0:01:39]} 20. Be3 {[%clk 0:00:16]}  Rc8 {[%clk 0:01:33]} 21. Nb6 {[%clk 0:00:15]}  Rc7 {[%clk 0:01:33]} 22. Bf4 {[%clk 0:00:14]}  Rce7 {[%clk 0:01:31]} 23. Na4 {[%clk 0:00:12]}  Bc8 {[%clk 0:01:03]} 24. Rxe7 {[%clk 0:00:08]}  Bxe7 {[%clk 0:01:03]} 25. Ne5 {[%clk 0:00:07]}  Bd6 {[%clk 0:01:00]} 26. Nf3 {[%clk 0:00:07]}  Bf8 {[%clk 0:00:58]} 27. Nc3 {[%clk 0:00:06]}  Qb6 {[%clk 0:00:50]} 28. b4 {[%clk 0:00:06]}  Be6 {[%clk 0:00:45]} 29. Ne2 {[%clk 0:00:06]}  Ne4 {[%clk 0:00:43]} 30. Qe3 {[%clk 0:00:05]}  Qxe3 {[%clk 0:00:35]} 31. Bxe3 {[%clk 0:00:06]}  f5 {[%clk 0:00:33]} 32. Nfd4 {[%clk 0:00:06]}  Bd7 {[%clk 0:00:32]} 33. f3 {[%clk 0:00:06]}  Nf6 {[%clk 0:00:30]} 34. Kf2 {[%clk 0:00:06]}  g6 {[%clk 0:00:27]} 35. Nf4 {[%clk 0:00:06]}  Kg7 {[%clk 0:00:23]} 36. Nxc6 {[%clk 0:00:07]}  Bxc6 {[%clk 0:00:22]} 37. Bd4 {[%clk 0:00:07]}  Kf7 {[%clk 0:00:20]} 38. Re1 {[%clk 0:00:07]}  Rxe1 {[%clk 0:00:19]} 39. Kxe1 {[%clk 0:00:08]}  Bd6 {[%clk 0:00:19]} 40. Ne2 {[%clk 0:00:09]}  Nd7 {[%clk 0:00:18]} 41. Kd2 {[%clk 0:00:09]}  Ne5 {[%clk 0:00:17]} 42. f4 {[%clk 0:00:08]}  Nc4+ {[%clk 0:00:15]} 43. Kc3 {[%clk 0:00:06]}  Nxa3 {[%clk 0:00:15]} 44. Be5 {[%clk 0:00:04]}  Ke6 {[%clk 0:00:14]} 45. Bxd6 {[%clk 0:00:04]}  Kxd6 {[%clk 0:00:15]} 46. Kd4 {[%clk 0:00:04]}  Bb5 {[%clk 0:00:13]} 47. Nc3 {[%clk 0:00:03]}  Bxd3 {[%clk 0:00:12]} 48. cxd3 {[%clk 0:00:04]}  Nc2# {[%clk 0:00:12]} 0-1

[Event "December 12 Early 2023"]
[Site "https://www.chess.com"]
[Date "2023.12.12"]
[Round "6"]
[White "Osmonbekov, Talaibek"]
[Black "Mestnikov, Aisen"]
[Result "1-0"]
[Board "147"]
[TimeControl "180+1"]
[WhiteFideId "2017253"]
[BlackFideId "34130117"]
[WhiteElo "2223"]
[BlackElo "2469"]
[WhiteTeam "USA"]
[BlackTeam "RUS"]
[WhiteClock "0:00:29"]
[BlackClock "0:00:01"]

1. d4 {[%clk 0:03:00]}  Nf6 {[%clk 0:02:59]} 2. Nc3 {[%clk 0:03:01]}  d5 {[%clk 0:02:59]} 3. Bf4 {[%clk 0:03:01]}  e6 {[%clk 0:02:59]} 4. e3 {[%clk 0:03:02]}  Be7 {[%clk 0:02:58]} 5. Nf3 {[%clk 0:03:02]}  O-O {[%clk 0:02:58]} 6. Bd3 {[%clk 0:03:01]}  c5 {[%clk 0:02:58]} 7. dxc5 {[%clk 0:03:01]}  Nc6 {[%clk 0:02:57]} 8. O-O {[%clk 0:03:02]}  Nh5 {[%clk 0:02:54]} 9. Ne5 {[%clk 0:02:45]}  Nxf4 {[%clk 0:02:53]} 10. exf4 {[%clk 0:02:46]}  Nxe5 {[%clk 0:02:42]} 11. fxe5 {[%clk 0:02:45]}  Bxc5 {[%clk 0:02:43]} 12. Re1 {[%clk 0:02:32]}  Qb6 {[%clk 0:02:34]} 13. Qf3 {[%clk 0:02:21]}  Bd7 {[%clk 0:02:14]} 14. Rab1 {[%clk 0:02:11]}  a5 {[%clk 0:02:14]} 15. Re2 {[%clk 0:01:53]}  Bd4 {[%clk 0:02:11]} 16. Nd1 {[%clk 0:01:45]}  a4 {[%clk 0:02:05]} 17. c3 {[%clk 0:01:44]}  Bc5 {[%clk 0:02:05]} 18. Ne3 {[%clk 0:01:43]}  Bb5 {[%clk 0:01:55]} 19. Ng4 {[%clk 0:01:17]}  Bxd3 {[%clk 0:01:53]} 20. Qxd3 {[%clk 0:01:13]}  Qa6 {[%clk 0:01:53]} 21. Qf3 {[%clk 0:01:13]}  Qc4 {[%clk 0:01:46]} 22. Rbe1 {[%clk 0:01:03]}  h5 {[%clk 0:00:44]} 23. Ne3 {[%clk 0:01:01]}  Bxe3 {[%clk 0:00:43]} 24. Rxe3 {[%clk 0:00:50]}  g6 {[%clk 0:00:31]} 25. a3 {[%clk 0:00:48]}  Ra5 {[%clk 0:00:29]} 26. Qf6 {[%clk 0:00:41]}  Qg4 {[%clk 0:00:17]} 27. Rf3 {[%clk 0:00:38]}  Qf5 {[%clk 0:00:17]} 28. Rxf5 {[%clk 0:00:37]}  exf5 {[%clk 0:00:16]} 29. e6 {[%clk 0:00:37]}  Ra6 {[%clk 0:00:17]} 30. exf7+ {[%clk 0:00:35]}  Kh7 {[%clk 0:00:14]} 31. Qe7 {[%clk 0:00:34]}  Raa8 {[%clk 0:00:15]} 32. Re6 {[%clk 0:00:33]}  d4 {[%clk 0:00:12]} 33. Qf6 {[%clk 0:00:31]}  Rg8 {[%clk 0:00:06]} 34. fxg8=Q+ {[%clk 0:00:30]}  Rxg8 {[%clk 0:00:07]} 35. cxd4 {[%clk 0:00:29]}  Rc8 {[%clk 0:00:04]} 36. Re7+ {[%clk 0:00:29]}  Kh6 {[%clk 0:00:03]} 37. h4 {[%clk 0:00:29]}  Rc1+ {[%clk 0:00:03]} 38. Kh2 {[%clk 0:00:29]}  Rc6 {[%clk 0:00:01]} 39. Qg5# {[%clk 0:00:29]} 1-0

[Event "December 12 Early 2023"]
[Site "https://www.chess.com"]
[Date "2023.12.12"]
[Round "6"]
[White "Lopez Idarraga, Daniel Eduardo"]
[Black "Fernandez Hernandez, Gerardo"]
[Result "1-0"]
[Board "149"]
[TimeControl "180+1"]
[WhiteFideId "4405501"]
[BlackFideId "2207400"]
[WhiteElo "2455"]
[BlackElo "2201"]
[WhiteTeam "COL"]
[BlackTeam "ESP"]
[WhiteClock "0:01:21"]
[BlackClock "0:00:00"]

1. e4 {[%clk 0:03:00]}  e6 {[%clk 0:03:00]} 2. d4 {[%clk 0:03:00]}  d5 {[%clk 0:03:00]} 3. Nc3 {[%clk 0:03:01]}  Nc6 {[%clk 0:03:00]} 4. Nf3 {[%clk 0:02:59]}  Nf6 {[%clk 0:03:00]} 5. e5 {[%clk 0:02:59]}  Ne4 {[%clk 0:03:00]} 6. Bd2 {[%clk 0:02:58]}  Bd7 {[%clk 0:02:48]} 7. Bd3 {[%clk 0:02:56]}  Nxd2 {[%clk 0:02:48]} 8. Qxd2 {[%clk 0:02:57]}  f6 {[%clk 0:02:47]} 9. O-O {[%clk 0:02:56]}  fxe5 {[%clk 0:02:46]} 10. dxe5 {[%clk 0:02:55]}  Nb4 {[%clk 0:02:34]} 11. Be2 {[%clk 0:02:18]}  c5 {[%clk 0:02:24]} 12. Nb5 {[%clk 0:02:16]}  Bxb5 {[%clk 0:02:07]} 13. Bxb5+ {[%clk 0:02:14]}  Nc6 {[%clk 0:02:08]} 14. c4 {[%clk 0:02:11]}  a6 {[%clk 0:01:52]} 15. Ba4 {[%clk 0:02:10]}  Be7 {[%clk 0:01:29]} 16. Qf4 {[%clk 0:02:07]}  Rf8 {[%clk 0:01:07]} 17. Qg4 {[%clk 0:02:05]}  Qd7 {[%clk 0:00:55]} 18. cxd5 {[%clk 0:02:01]}  exd5 {[%clk 0:00:52]} 19. e6 {[%clk 0:02:00]}  Qd6 {[%clk 0:00:46]} 20. Bxc6+ {[%clk 0:01:53]}  bxc6 {[%clk 0:00:37]} 21. Rfe1 {[%clk 0:01:47]}  O-O-O {[%clk 0:00:30]} 22. Ne5 {[%clk 0:01:41]}  Rde8 {[%clk 0:00:14]} 23. Qxg7 {[%clk 0:01:33]}  Qxe6 {[%clk 0:00:13]} 24. Nxc6 {[%clk 0:01:31]}  Qxc6 {[%clk 0:00:12]} 25. Rxe7 {[%clk 0:01:30]}  Rxe7 {[%clk 0:00:07]} 26. Qxe7 {[%clk 0:01:31]}  Re8 {[%clk 0:00:03]} 27. Qxh7 {[%clk 0:01:30]}  Qe6 {[%clk 0:00:03]} 28. h4 {[%clk 0:01:28]}  Qe2 {[%clk 0:00:02]} 29. Rc1 {[%clk 0:01:24]}  c4 {[%clk 0:00:01]} 30. b3 {[%clk 0:01:23]}  Qb2 {[%clk 0:00:01]} 31. Rc2 {[%clk 0:01:21]}  Qb1+ {[%clk 0:00:00]} 32. Kh2 {[%clk 0:01:21]} 1-0

[Event "December 12 Early 2023"]
[Site "https://www.chess.com"]
[Date "2023.12.12"]
[Round "6"]
[White "BestestBP"]
[Black "Pak, Yevgeniy"]
[Result "0-1"]
[Board "150"]
[TimeControl "180+1"]
[BlackFideId "14201712"]
[WhiteElo "2142"]
[BlackElo "2454"]
[BlackTeam "KAZ"]
[WhiteClock "0:00:03"]
[BlackClock "0:00:40"]

1. d4 {[%clk 0:02:55]}  d5 {[%clk 0:02:59]} 2. Nf3 {[%clk 0:02:54]}  Nf6 {[%clk 0:02:57]} 3. c4 {[%clk 0:02:50]}  c6 {[%clk 0:02:56]} 4. g3 {[%clk 0:02:48]}  Bf5 {[%clk 0:02:54]} 5. Nc3 {[%clk 0:02:43]}  e6 {[%clk 0:02:54]} 6. Nh4 {[%clk 0:02:32]}  dxc4 {[%clk 0:02:44]} 7. Nxf5 {[%clk 0:02:27]}  exf5 {[%clk 0:02:45]} 8. e3 {[%clk 0:02:27]}  b5 {[%clk 0:02:42]} 9. Bg2 {[%clk 0:02:09]}  Nbd7 {[%clk 0:02:38]} 10. Bxc6 {[%clk 0:02:05]}  b4 {[%clk 0:02:37]} 11. Ne2 {[%clk 0:01:59]}  Rc8 {[%clk 0:02:31]} 12. Bg2 {[%clk 0:01:45]}  Be7 {[%clk 0:02:26]} 13. O-O {[%clk 0:01:41]}  O-O {[%clk 0:02:11]} 14. Qc2 {[%clk 0:01:30]}  g5 {[%clk 0:02:07]} 15. Qxf5 {[%clk 0:01:28]}  Ne8 {[%clk 0:02:04]} 16. e4 {[%clk 0:01:21]}  Ng7 {[%clk 0:02:00]} 17. Qf3 {[%clk 0:01:01]}  f6 {[%clk 0:01:55]} 18. e5 {[%clk 0:00:51]}  fxe5 {[%clk 0:01:51]} 19. Qd5+ {[%clk 0:00:46]}  Kh8 {[%clk 0:01:49]} 20. dxe5 {[%clk 0:00:39]}  Rc5 {[%clk 0:01:39]} 21. Qb7 {[%clk 0:00:16]}  Nxe5 {[%clk 0:01:33]} 22. Be3 {[%clk 0:00:16]}  Rc7 {[%clk 0:01:29]} 23. Qe4 {[%clk 0:00:15]}  Nd3 {[%clk 0:01:25]} 24. Nd4 {[%clk 0:00:14]}  Bf6 {[%clk 0:01:15]} 25. Ne6 {[%clk 0:00:11]}  Nxe6 {[%clk 0:01:11]} 26. Qxe6 {[%clk 0:00:12]}  Bxb2 {[%clk 0:01:08]} 27. Rad1 {[%clk 0:00:12]}  Re8 {[%clk 0:01:04]} 28. Qg4 {[%clk 0:00:11]}  h6 {[%clk 0:01:00]} 29. h4 {[%clk 0:00:10]}  gxh4 {[%clk 0:00:58]} 30. Bxh6 {[%clk 0:00:10]}  Rg8 {[%clk 0:00:53]} 31. Qh5 {[%clk 0:00:09]}  Rh7 {[%clk 0:00:51]} 32. Be4 {[%clk 0:00:06]}  hxg3 {[%clk 0:00:50]} 33. Bxh7 {[%clk 0:00:04]}  gxf2+ {[%clk 0:00:50]} 34. Kh1 {[%clk 0:00:03]}  Qa8+ {[%clk 0:00:47]} 35. Kh2 {[%clk 0:00:03]}  Qg2# {[%clk 0:00:40]} 0-1

[Event "December 12 Early 2023"]
[Site "https://www.chess.com"]
[Date "2023.12.12"]
[Round "6"]
[White "Botea, David-Alexandru"]
[Black "Skiadopoulos, Nikolaos"]
[Result "1-0"]
[Board "151"]
[TimeControl "180+1"]
[WhiteFideId "1263293"]
[BlackFideId "4200772"]
[WhiteElo "2361"]
[BlackElo "1748"]
[WhiteTeam "ROU"]
[BlackTeam "GRE"]
[WhiteClock "0:00:02"]
[BlackClock "0:00:00"]

1. g3 {[%clk 0:02:56]}  c6 {[%clk 0:02:59]} 2. Bg2 {[%clk 0:02:54]}  d5 {[%clk 0:02:56]} 3. c4 {[%clk 0:02:54]}  e6 {[%clk 0:02:56]} 4. cxd5 {[%clk 0:02:50]}  exd5 {[%clk 0:02:56]} 5. d4 {[%clk 0:02:50]}  Nf6 {[%clk 0:02:55]} 6. Nf3 {[%clk 0:02:50]}  Be7 {[%clk 0:02:52]} 7. O-O {[%clk 0:02:48]}  O-O {[%clk 0:02:52]} 8. Nc3 {[%clk 0:02:47]}  h6 {[%clk 0:02:50]} 9. a3 {[%clk 0:02:44]}  Be6 {[%clk 0:02:49]} 10. b4 {[%clk 0:02:44]}  a5 {[%clk 0:02:47]} 11. b5 {[%clk 0:02:38]}  Ne4 {[%clk 0:02:14]} 12. Nxe4 {[%clk 0:02:25]}  dxe4 {[%clk 0:02:14]} 13. Ne5 {[%clk 0:02:26]}  Bd5 {[%clk 0:02:01]} 14. bxc6 {[%clk 0:02:12]}  Nxc6 {[%clk 0:02:00]} 15. Nxc6 {[%clk 0:02:12]}  bxc6 {[%clk 0:01:47]} 16. Qc2 {[%clk 0:02:08]}  f5 {[%clk 0:01:43]} 17. Bf4 {[%clk 0:01:59]}  g5 {[%clk 0:01:39]} 18. Be5 {[%clk 0:01:58]}  Bd6 {[%clk 0:01:39]} 19. Bxd6 {[%clk 0:01:16]}  Qxd6 {[%clk 0:01:37]} 20. f4 {[%clk 0:01:14]}  exf3 {[%clk 0:01:31]} 21. Bxf3 {[%clk 0:01:11]}  Bxf3 {[%clk 0:01:31]} 22. exf3 {[%clk 0:01:00]}  Qxd4+ {[%clk 0:01:30]} 23. Kh1 {[%clk 0:00:58]}  Qf6 {[%clk 0:01:24]} 24. Rac1 {[%clk 0:00:56]}  Rac8 {[%clk 0:01:22]} 25. Qc5 {[%clk 0:00:54]}  f4 {[%clk 0:00:54]} 26. Qxa5 {[%clk 0:00:32]}  fxg3 {[%clk 0:00:52]} 27. hxg3 {[%clk 0:00:33]}  Qf5 {[%clk 0:00:41]} 28. Qxf5 {[%clk 0:00:27]}  Rxf5 {[%clk 0:00:39]} 29. Rc3 {[%clk 0:00:28]}  c5 {[%clk 0:00:33]} 30. Rd1 {[%clk 0:00:26]}  Rcf8 {[%clk 0:00:29]} 31. Kg2 {[%clk 0:00:26]}  h5 {[%clk 0:00:28]} 32. Rd7 {[%clk 0:00:24]}  R8f7 {[%clk 0:00:26]} 33. Rd8+ {[%clk 0:00:22]}  Kg7 {[%clk 0:00:26]} 34. Rc8 {[%clk 0:00:21]}  h4 {[%clk 0:00:25]} 35. R8xc5 {[%clk 0:00:20]}  Rxc5 {[%clk 0:00:19]} 36. Rxc5 {[%clk 0:00:20]}  h3+ {[%clk 0:00:18]} 37. Kxh3 {[%clk 0:00:16]}  Rxf3 {[%clk 0:00:16]} 38. Rxg5+ {[%clk 0:00:16]}  Kf6 {[%clk 0:00:16]} 39. Ra5 {[%clk 0:00:16]}  Rb3 {[%clk 0:00:14]} 40. Kg4 {[%clk 0:00:13]}  Rc3 {[%clk 0:00:13]} 41. Ra6+ {[%clk 0:00:10]}  Kg7 {[%clk 0:00:13]} 42. a4 {[%clk 0:00:10]}  Rc4+ {[%clk 0:00:12]} 43. Kh5 {[%clk 0:00:10]}  Rc5+ {[%clk 0:00:12]} 44. Kh4 {[%clk 0:00:10]}  Rc1 {[%clk 0:00:10]} 45. g4 {[%clk 0:00:10]}  Rc5 {[%clk 0:00:06]} 46. a5 {[%clk 0:00:10]}  Kh7 {[%clk 0:00:05]} 47. g5 {[%clk 0:00:09]}  Rc1 {[%clk 0:00:03]} 48. Rh6+ {[%clk 0:00:05]}  Kg7 {[%clk 0:00:03]} 49. a6 {[%clk 0:00:03]}  Rh1+ {[%clk 0:00:01]} 50. Kg4 {[%clk 0:00:03]}  Rg1+ {[%clk 0:00:01]} 51. Kf4 {[%clk 0:00:03]}  Rf1+ {[%clk 0:00:00]} 52. Ke4 {[%clk 0:00:02]} 1-0